[Event "*** SCC Grand Prix: Titled Tuesday Blitz"]
[Site "Chess.com"]
[Date "2020.08.11"]
[Round "1"]
[White "DinaBelenkaya"]
[Black "Leonid_Starozhilov"]
[Result "0-1"]
[WhiteElo "2346"]
[BlackElo "2697"]
[TimeControl "180+1"]
[EndTime "10:07:50 PDT"]
[Termination "Leonid_Starozhilov won by checkmate"]

1. e4 {[%clk 0:03:00.9]} 1... g6 {[%clk 0:02:59.7]} 2. d4 {[%clk 0:02:58.8]}
2... Bg7 {[%clk 0:03:00]} 3. Nc3 {[%clk 0:02:57]} 3... d6 {[%clk 0:03:00.4]} 4.
f4 {[%clk 0:02:55.1]} 4... Nf6 {[%clk 0:03:00.6]} 5. Bd3 {[%clk 0:02:46.1]} 5...
Nc6 {[%clk 0:02:55.5]} 6. Nf3 {[%clk 0:02:45.2]} 6... Bg4 {[%clk 0:02:54.8]} 7.
Be3 {[%clk 0:02:29.9]} 7... e5 {[%clk 0:02:51.1]} 8. dxe5 {[%clk 0:02:09]} 8...
dxe5 {[%clk 0:02:50.9]} 9. f5 {[%clk 0:02:02.7]} 9... gxf5 {[%clk 0:02:39.4]}
10. exf5 {[%clk 0:02:00.2]} 10... Nd4 {[%clk 0:02:04.3]} 11. O-O {[%clk
0:01:18]} 11... Bxf3 {[%clk 0:01:38.6]} 12. gxf3 {[%clk 0:01:18.9]} 12... Qd7
{[%clk 0:01:39]} 13. Kh1 {[%clk 0:00:39.1]} 13... O-O-O {[%clk 0:01:35.5]} 14.
Rg1 {[%clk 0:00:37.5]} 14... Rhg8 {[%clk 0:01:28.8]} 15. Ne4 {[%clk 0:00:36.3]}
15... Nd5 {[%clk 0:00:40.4]} 16. Bg5 {[%clk 0:00:33.8]} 16... f6 {[%clk
0:00:40.1]} 17. Bh4 {[%clk 0:00:24.6]} 17... Kb8 {[%clk 0:00:35.5]} 18. Ng3
{[%clk 0:00:20]} 18... Bh6 {[%clk 0:00:22.1]} 19. Be4 {[%clk 0:00:19.5]} 19...
Ne3 {[%clk 0:00:20.1]} 20. Qd3 {[%clk 0:00:18.5]} 20... Qf7 {[%clk 0:00:11.4]}
21. Qa3 {[%clk 0:00:09.4]} 21... Bf8 {[%clk 0:00:09]} 22. Qa5 {[%clk 0:00:07.9]}
22... Bd6 {[%clk 0:00:07.3]} 23. c3 {[%clk 0:00:05.1]} 23... Nc4 {[%clk
0:00:05.9]} 24. Qa4 {[%clk 0:00:04]} 24... Nb6 {[%clk 0:00:06.5]} 25. Qd1 {[%clk
0:00:03.3]} 25... Nc6 {[%clk 0:00:06.9]} 26. Qe2 {[%clk 0:00:02.9]} 26... h5
{[%clk 0:00:06]} 27. Rad1 {[%clk 0:00:03]} 27... Ne7 {[%clk 0:00:05.9]} 28. Rd2
{[%clk 0:00:03.5]} 28... Ned5 {[%clk 0:00:06.3]} 29. Rgd1 {[%clk 0:00:03.6]}
29... Nf4 {[%clk 0:00:06.8]} 30. Qf1 {[%clk 0:00:04]} 30... Qe7 {[%clk
0:00:06.7]} 31. b3 {[%clk 0:00:03.4]} 31... c6 {[%clk 0:00:07.1]} 32. c4 {[%clk
0:00:03.2]} 32... Bc7 {[%clk 0:00:07.6]} 33. a4 {[%clk 0:00:02.6]} 33... Rxd2
{[%clk 0:00:07.3]} 34. Rxd2 {[%clk 0:00:03.5]} 34... Rd8 {[%clk 0:00:07.8]} 35.
Qd1 {[%clk 0:00:03.8]} 35... Rxd2 {[%clk 0:00:07.4]} 36. Qxd2 {[%clk 0:00:04.7]}
36... Nd7 {[%clk 0:00:07.9]} 37. a5 {[%clk 0:00:04.2]} 37... Nc5 {[%clk
0:00:07.3]} 38. b4 {[%clk 0:00:04.5]} 38... Nd7 {[%clk 0:00:07.2]} 39. b5 {[%clk
0:00:03.6]} 39... cxb5 {[%clk 0:00:05.3]} 40. cxb5 {[%clk 0:00:04.5]} 40... Nc5
{[%clk 0:00:05.4]} 41. a6 {[%clk 0:00:04.3]} 41... Nxe4 {[%clk 0:00:05]} 42.
Nxe4 {[%clk 0:00:02.6]} 42... b6 {[%clk 0:00:03.7]} 43. Bxf6 {[%clk 0:00:02.7]}
43... Qe8 {[%clk 0:00:04.1]} 44. Qc3 {[%clk 0:00:02.3]} 44... Qg8 {[%clk
0:00:03.3]} 45. Qc6 {[%clk 0:00:01.6]} 45... Qg2# {[%clk 0:00:03.4]} 0-1

[Event "*** SCC Grand Prix: Titled Tuesday Blitz"]
[Site "Chess.com"]
[Date "2020.08.11"]
[Round "1"]
[White "Fh2411"]
[Black "barbara25"]
[Result "1-0"]
[WhiteElo "2552"]
[BlackElo "2191"]
[TimeControl "180+1"]
[EndTime "10:07:51 PDT"]
[Termination "Fh2411 won by resignation"]

1. d4 {[%clk 0:03:00.5]} 1... d5 {[%clk 0:02:59.7]} 2. Nf3 {[%clk 0:02:59.7]}
2... Nf6 {[%clk 0:02:59.1]} 3. Bf4 {[%clk 0:02:59.6]} 3... e6 {[%clk 0:02:59.1]}
4. e3 {[%clk 0:03:00]} 4... Bd6 {[%clk 0:02:55.2]} 5. Bg3 {[%clk 0:03:00.1]}
5... O-O {[%clk 0:02:51]} 6. Nbd2 {[%clk 0:03:00]} 6... b6 {[%clk 0:02:47.9]} 7.
Bd3 {[%clk 0:02:59.4]} 7... c5 {[%clk 0:02:41.2]} 8. Ne5 {[%clk 0:02:43.6]} 8...
Ba6 {[%clk 0:02:37.3]} 9. O-O {[%clk 0:02:24.6]} 9... Bxd3 {[%clk 0:02:33.9]}
10. Nxd3 {[%clk 0:02:24]} 10... Bxg3 {[%clk 0:02:32.5]} 11. hxg3 {[%clk
0:02:23.8]} 11... c4 {[%clk 0:02:32.3]} 12. Ne5 {[%clk 0:02:22.9]} 12... Nbd7
{[%clk 0:02:32.5]} 13. Nxd7 {[%clk 0:01:59.4]} 13... Qxd7 {[%clk 0:02:29.8]} 14.
c3 {[%clk 0:01:59.1]} 14... b5 {[%clk 0:02:29.5]} 15. g4 {[%clk 0:01:53.8]}
15... a5 {[%clk 0:02:28.4]} 16. Qf3 {[%clk 0:01:52]} 16... b4 {[%clk 0:02:27.5]}
17. g5 {[%clk 0:01:51.2]} 17... Ne8 {[%clk 0:02:26]} 18. e4 {[%clk 0:01:50.3]}
18... Rd8 {[%clk 0:02:20.5]} 19. Rfe1 {[%clk 0:01:47.8]} 19... f6 {[%clk
0:02:20.3]} 20. Qg3 {[%clk 0:01:40.2]} 20... Qc7 {[%clk 0:02:09.9]} 21. Qh3
{[%clk 0:01:31.4]} 21... f5 {[%clk 0:02:06.5]} 22. exd5 {[%clk 0:01:29.1]} 22...
exd5 {[%clk 0:02:05.5]} 23. Re5 {[%clk 0:01:16.1]} 23... g6 {[%clk 0:02:03.3]}
24. Rae1 {[%clk 0:01:14.1]} 24... Ng7 {[%clk 0:02:03]} 25. Re7 {[%clk
0:01:06.7]} 25... Rd7 {[%clk 0:02:03.1]} 26. R7e2 {[%clk 0:01:01.9]} 26... Qd6
{[%clk 0:01:45.3]} 27. Nf3 {[%clk 0:01:01.4]} 27... b3 {[%clk 0:01:41.9]} 28. a3
{[%clk 0:00:59.5]} 28... a4 {[%clk 0:01:32.3]} 29. Qh4 {[%clk 0:00:51.2]} 29...
Nh5 {[%clk 0:01:26.4]} 30. Ne5 {[%clk 0:00:51]} 30... Rg7 {[%clk 0:01:19.3]} 31.
f4 {[%clk 0:00:50]} 31... Re7 {[%clk 0:01:11.8]} 32. Qf2 {[%clk 0:00:49.3]}
32... Rfe8 {[%clk 0:01:11.1]} 33. Qf3 {[%clk 0:00:46.8]} 33... Re6 {[%clk
0:01:09.3]} 34. g3 {[%clk 0:00:46.9]} 34... Ng7 {[%clk 0:01:08.7]} 35. Re3
{[%clk 0:00:44.3]} 35... Qc7 {[%clk 0:01:03.1]} 36. Qxd5 {[%clk 0:00:43.3]}
36... Kh8 {[%clk 0:00:52.9]} 37. Nxg6+ {[%clk 0:00:28.4]} 37... hxg6 {[%clk
0:00:51.1]} 38. Rxe6 {[%clk 0:00:28.5]} 38... Rxe6 {[%clk 0:00:47.2]} 39. Rxe6
{[%clk 0:00:29.4]} 39... Nxe6 {[%clk 0:00:47.1]} 40. Qxe6 {[%clk 0:00:30.3]}
40... Qb7 {[%clk 0:00:44.6]} 41. d5 {[%clk 0:00:21.8]} 41... Qa7+ {[%clk
0:00:43.8]} 42. Kg2 {[%clk 0:00:22]} 42... Qb7 {[%clk 0:00:41.7]} 43. Qe5+
{[%clk 0:00:16.3]} 43... Kh7 {[%clk 0:00:40.7]} 44. Kf2 {[%clk 0:00:15.5]} 44...
Qa7+ {[%clk 0:00:40.4]} 45. Qe3 {[%clk 0:00:14.4]} 45... Qd7 {[%clk 0:00:39.8]}
46. Qd4 {[%clk 0:00:14.1]} 46... Qd6 {[%clk 0:00:38]} 47. Qxc4 {[%clk 0:00:14]}
47... Qb6+ {[%clk 0:00:36.3]} 48. Qd4 {[%clk 0:00:14.4]} 48... Qa6 {[%clk
0:00:36.2]} 49. d6 {[%clk 0:00:14.2]} 49... Qa8 {[%clk 0:00:35.5]} 50. d7 {[%clk
0:00:14.4]} 50... Qh1 {[%clk 0:00:35.3]} 51. d8=Q {[%clk 0:00:12.9]} 51... Qh2+
{[%clk 0:00:35.3]} 52. Ke1 {[%clk 0:00:12.3]} 52... Qxg3+ {[%clk 0:00:35.1]} 53.
Kd2 {[%clk 0:00:12.9]} 53... Qg2+ {[%clk 0:00:33.5]} 54. Kc1 {[%clk 0:00:12.1]}
54... Qxb2+ {[%clk 0:00:28]} 55. Kd1 {[%clk 0:00:07.6]} 55... Qe2+ {[%clk
0:00:27.1]} 56. Kxe2 {[%clk 0:00:07.1]} 1-0

[Event "*** SCC Grand Prix: Titled Tuesday Blitz"]
[Site "Chess.com"]
[Date "2020.08.11"]
[Round "1"]
[White "ace_mar"]
[Black "Sesleria"]
[Result "1-0"]
[WhiteElo "2469"]
[BlackElo "1947"]
[TimeControl "180+1"]
[EndTime "10:07:51 PDT"]
[Termination "ace_mar won on time"]

1. d4 {[%clk 0:03:00.9]} 1... Nf6 {[%clk 0:02:58.9]} 2. c4 {[%clk 0:03:00.1]}
2... e6 {[%clk 0:02:57.4]} 3. g3 {[%clk 0:03:00.3]} 3... c5 {[%clk 0:02:54.5]}
4. d5 {[%clk 0:03:00.1]} 4... exd5 {[%clk 0:02:54.8]} 5. cxd5 {[%clk 0:03:01]}
5... d6 {[%clk 0:02:54.8]} 6. Nc3 {[%clk 0:03:01.6]} 6... g6 {[%clk 0:02:54.7]}
7. Bg2 {[%clk 0:03:02.1]} 7... Bg7 {[%clk 0:02:55.1]} 8. Nf3 {[%clk 0:03:02.8]}
8... O-O {[%clk 0:02:55.6]} 9. O-O {[%clk 0:03:03.5]} 9... Re8 {[%clk 0:02:55]}
10. Bf4 {[%clk 0:03:02.7]} 10... a6 {[%clk 0:02:48.3]} 11. a4 {[%clk 0:03:02.5]}
11... Qb6 {[%clk 0:02:32]} 12. Qd2 {[%clk 0:02:56.4]} 12... Bg4 {[%clk
0:02:18.3]} 13. Ng5 {[%clk 0:02:46.9]} 13... Nbd7 {[%clk 0:01:51.3]} 14. h3
{[%clk 0:02:42.3]} 14... h6 {[%clk 0:01:45.5]} 15. Nge4 {[%clk 0:02:33.8]} 15...
Nxe4 {[%clk 0:01:40.6]} 16. Nxe4 {[%clk 0:02:34.7]} 16... Rxe4 {[%clk
0:01:39.2]} 17. Bxe4 {[%clk 0:02:28.7]} 17... Bxh3 {[%clk 0:01:39.4]} 18. Rfb1
{[%clk 0:02:20]} 18... Re8 {[%clk 0:01:37.6]} 19. Qc2 {[%clk 0:02:11.9]} 19...
Nf6 {[%clk 0:01:16.4]} 20. Bd3 {[%clk 0:02:01.2]} 20... Nxd5 {[%clk 0:01:07.9]}
21. Bd2 {[%clk 0:02:00.9]} 21... Nb4 {[%clk 0:00:45.7]} 22. Bxb4 {[%clk
0:01:43.2]} 22... Qxb4 {[%clk 0:00:45.2]} 23. Ra3 {[%clk 0:01:40.8]} 23... Be6
{[%clk 0:00:32.7]} 24. Be4 {[%clk 0:01:25.7]} 24... d5 {[%clk 0:00:30.9]} 25.
Bf3 {[%clk 0:01:24]} 25... Bf5 {[%clk 0:00:29.1]} 26. Qd1 {[%clk 0:01:14.5]}
26... Bxb1 {[%clk 0:00:28.4]} 27. Qxb1 {[%clk 0:01:15.4]} 27... Qc4 {[%clk
0:00:12.3]} 28. Qd1 {[%clk 0:01:06.4]} 28... d4 {[%clk 0:00:08.1]} 29. Rd3
{[%clk 0:00:54.1]} 29... b5 {[%clk 0:00:07.1]} 30. axb5 {[%clk 0:00:45]} 30...
axb5 {[%clk 0:00:08]} 31. Qa1 {[%clk 0:00:44.6]} 31... Qe6 {[%clk 0:00:07.4]}
32. Qa5 {[%clk 0:00:38.3]} 32... c4 {[%clk 0:00:07.7]} 33. Rd1 {[%clk
0:00:38.8]} 33... Qe5 {[%clk 0:00:06.3]} 34. Qb4 {[%clk 0:00:31.6]} 34... h5
{[%clk 0:00:05.5]} 35. Kf1 {[%clk 0:00:25.7]} 35... Bf6 {[%clk 0:00:05.8]} 36.
Re1 {[%clk 0:00:21.8]} 36... Kg7 {[%clk 0:00:06.2]} 37. Bc6 {[%clk 0:00:21.4]}
37... Re6 {[%clk 0:00:06.2]} 38. Qxb5 {[%clk 0:00:20]} 38... Qxb5 {[%clk
0:00:05.3]} 39. Bxb5 {[%clk 0:00:20.9]} 39... Rb6 {[%clk 0:00:04.1]} 40. Bxc4
{[%clk 0:00:20.2]} 40... Rxb2 {[%clk 0:00:05]} 41. Rd1 {[%clk 0:00:20.7]} 41...
Be5 {[%clk 0:00:04.6]} 42. Bd3 {[%clk 0:00:21]} 42... Kf6 {[%clk 0:00:03.9]} 43.
Kg2 {[%clk 0:00:21.3]} 43... g5 {[%clk 0:00:03.7]} 44. Kf3 {[%clk 0:00:21.6]}
44... Rb4 {[%clk 0:00:03.7]} 45. Rc1 {[%clk 0:00:20.7]} 45... g4+ {[%clk
0:00:04]} 46. Kg2 {[%clk 0:00:20.6]} 46... Ke6 {[%clk 0:00:03.8]} 47. Rc6+
{[%clk 0:00:20.9]} 47... Bd6 {[%clk 0:00:04.5]} 48. Bc4+ {[%clk 0:00:19.2]}
48... Ke5 {[%clk 0:00:03.7]} 49. Bd3 {[%clk 0:00:18.8]} 49... Rb7 {[%clk
0:00:03.5]} 50. Rc8 {[%clk 0:00:18.9]} 50... Kf6 {[%clk 0:00:03.1]} 51. Rh8
{[%clk 0:00:18.7]} 51... h4 {[%clk 0:00:02.7]} 52. Rxh4 {[%clk 0:00:18.4]} 1-0

[Event "*** SCC Grand Prix: Titled Tuesday Blitz"]
[Site "Chess.com"]
[Date "2020.08.11"]
[Round "1"]
[White "PlotnikovPavel"]
[Black "Beca95"]
[Result "0-1"]
[WhiteElo "2423"]
[BlackElo "2881"]
[TimeControl "180+1"]
[EndTime "10:07:52 PDT"]
[Termination "Beca95 won on time"]

1. e4 {[%clk 0:03:00.9]} 1... e5 {[%clk 0:02:58.9]} 2. Nf3 {[%clk 0:03:00.6]}
2... Nf6 {[%clk 0:02:58.8]} 3. Nc3 {[%clk 0:02:59]} 3... Bb4 {[%clk 0:02:57.3]}
4. Nxe5 {[%clk 0:02:55.5]} 4... O-O {[%clk 0:02:57.1]} 5. Nd3 {[%clk 0:02:50.6]}
5... Bxc3 {[%clk 0:02:56.1]} 6. dxc3 {[%clk 0:02:51.5]} 6... Nxe4 {[%clk
0:02:56.2]} 7. Be3 {[%clk 0:02:45]} 7... Re8 {[%clk 0:02:55.6]} 8. Qf3 {[%clk
0:02:44.9]} 8... d5 {[%clk 0:02:46.8]} 9. O-O-O {[%clk 0:02:44.4]} 9... c6
{[%clk 0:02:46.9]} 10. Nf4 {[%clk 0:02:39.2]} 10... Qa5 {[%clk 0:02:36.5]} 11.
Kb1 {[%clk 0:02:36.5]} 11... Nd7 {[%clk 0:02:36.6]} 12. Bd3 {[%clk 0:02:33.1]}
12... Ne5 {[%clk 0:02:35.3]} 13. Qe2 {[%clk 0:02:32.9]} 13... Nxd3 {[%clk
0:02:24.3]} 14. cxd3 {[%clk 0:02:26.7]} 14... Nf6 {[%clk 0:02:16.9]} 15. h3
{[%clk 0:02:20.8]} 15... d4 {[%clk 0:02:14.2]} 16. cxd4 {[%clk 0:02:20.1]} 16...
Nd5 {[%clk 0:02:14]} 17. Nxd5 {[%clk 0:02:17.6]} 17... Qxd5 {[%clk 0:02:14.9]}
18. Qf3 {[%clk 0:02:12.7]} 18... Qxf3 {[%clk 0:02:11.4]} 19. gxf3 {[%clk
0:02:13.6]} 19... Be6 {[%clk 0:02:05.4]} 20. h4 {[%clk 0:02:10.3]} 20... h5
{[%clk 0:02:04.8]} 21. Rhg1 {[%clk 0:02:10]} 21... f6 {[%clk 0:02:04.8]} 22. Rg3
{[%clk 0:02:09.2]} 22... Kh7 {[%clk 0:01:51.3]} 23. Rdg1 {[%clk 0:02:07]} 23...
Re7 {[%clk 0:01:51.3]} 24. a3 {[%clk 0:01:59.8]} 24... a5 {[%clk 0:01:50.6]} 25.
Kc2 {[%clk 0:01:58.8]} 25... Rd8 {[%clk 0:01:49]} 26. Rc1 {[%clk 0:01:46.3]}
26... Rd5 {[%clk 0:01:25.2]} 27. Kd2 {[%clk 0:01:44]} 27... Red7 {[%clk
0:01:25.3]} 28. Rc5 {[%clk 0:01:41.5]} 28... Bf5 {[%clk 0:01:24.8]} 29. Rxd5
{[%clk 0:01:39.3]} 29... Rxd5 {[%clk 0:01:25.7]} 30. Rg1 {[%clk 0:01:37.6]}
30... Rb5 {[%clk 0:01:25]} 31. Kc2 {[%clk 0:01:25.9]} 31... a4 {[%clk
0:01:24.7]} 32. Bd2 {[%clk 0:01:25.6]} 32... Rd5 {[%clk 0:01:22.8]} 33. Be3
{[%clk 0:01:19]} 33... Kg8 {[%clk 0:01:16]} 34. Rc1 {[%clk 0:01:15]} 34... Rb5
{[%clk 0:01:13.8]} 35. Bd2 {[%clk 0:01:08.9]} 35... Kf7 {[%clk 0:01:13.2]} 36.
Re1 {[%clk 0:01:07]} 36... Be6 {[%clk 0:01:12.8]} 37. Bc3 {[%clk 0:01:06.4]}
37... Rf5 {[%clk 0:01:12.4]} 38. Re3 {[%clk 0:01:06.1]} 38... Bd5 {[%clk
0:01:12.5]} 39. Bb4 {[%clk 0:01:03.2]} 39... Rf4 {[%clk 0:01:03.9]} 40. Re7+
{[%clk 0:01:01.2]} 40... Kg8 {[%clk 0:01:04]} 41. Rxb7 {[%clk 0:00:52.6]} 41...
Rxf3 {[%clk 0:01:03.9]} 42. Be1 {[%clk 0:00:44.2]} 42... Rf4 {[%clk 0:01:03]}
43. Kc3 {[%clk 0:00:35.3]} 43... Rxh4 {[%clk 0:01:02.3]} 44. b4 {[%clk
0:00:35.4]} 44... Rh1 {[%clk 0:00:45.9]} 45. Kd2 {[%clk 0:00:33.9]} 45... h4
{[%clk 0:00:45.9]} 46. b5 {[%clk 0:00:32.1]} 46... cxb5 {[%clk 0:00:46.1]} 47.
Rxb5 {[%clk 0:00:32]} 47... Bf3 {[%clk 0:00:46]} 48. Rf5 {[%clk 0:00:29.9]}
48... Bg4 {[%clk 0:00:31.8]} 49. Rf4 {[%clk 0:00:29.9]} 49... f5 {[%clk
0:00:31.8]} 50. f3 {[%clk 0:00:29.9]} 50... g5 {[%clk 0:00:32]} 51. fxg4 {[%clk
0:00:24.1]} 51... gxf4 {[%clk 0:00:31.9]} 52. gxf5 {[%clk 0:00:24.4]} 52... h3
{[%clk 0:00:32.2]} 0-1

[Event "*** SCC Grand Prix: Titled Tuesday Blitz"]
[Site "Chess.com"]
[Date "2020.08.11"]
[Round "1"]
[White "Alexsur1981"]
[Black "mr65"]
[Result "1-0"]
[WhiteElo "2511"]
[BlackElo "2138"]
[TimeControl "180+1"]
[EndTime "10:07:54 PDT"]
[Termination "Alexsur1981 won on time"]

1. e4 {[%clk 0:03:00.5]} 1... e5 {[%clk 0:02:58.8]} 2. f4 {[%clk 0:02:58.8]}
2... d5 {[%clk 0:02:57.2]} 3. exd5 {[%clk 0:02:58.6]} 3... c6 {[%clk 0:02:57]}
4. Nc3 {[%clk 0:02:56.1]} 4... exf4 {[%clk 0:02:53]} 5. Nf3 {[%clk 0:02:55.6]}
5... cxd5 {[%clk 0:02:52.4]} 6. d4 {[%clk 0:02:55.7]} 6... Nf6 {[%clk
0:02:46.5]} 7. Bxf4 {[%clk 0:02:54.9]} 7... Bd6 {[%clk 0:02:40.7]} 8. Bg5 {[%clk
0:02:46.6]} 8... Be7 {[%clk 0:02:31.7]} 9. Bd3 {[%clk 0:02:45.1]} 9... O-O
{[%clk 0:02:30.4]} 10. O-O {[%clk 0:02:41.7]} 10... Nc6 {[%clk 0:02:26.5]} 11.
Ne2 {[%clk 0:02:32.2]} 11... Bg4 {[%clk 0:02:23.9]} 12. c3 {[%clk 0:02:30.8]}
12... Ne4 {[%clk 0:02:17.9]} 13. Bxe7 {[%clk 0:02:28]} 13... Qxe7 {[%clk
0:02:16.3]} 14. h3 {[%clk 0:02:27.3]} 14... Bxf3 {[%clk 0:02:09.6]} 15. Rxf3
{[%clk 0:02:28.2]} 15... f5 {[%clk 0:02:07.3]} 16. Nf4 {[%clk 0:02:15.9]} 16...
Qd6 {[%clk 0:01:59.1]} 17. Qe2 {[%clk 0:01:30.8]} 17... g5 {[%clk 0:01:52.4]}
18. Nxd5 {[%clk 0:01:27.6]} 18... Rae8 {[%clk 0:01:45.9]} 19. Bc4 {[%clk
0:01:08.2]} 19... Kh8 {[%clk 0:01:32.2]} 20. Re1 {[%clk 0:01:05.6]} 20... Nf6
{[%clk 0:01:21.4]} 21. Re3 {[%clk 0:01:04.9]} 21... Rxe3 {[%clk 0:01:17.3]} 22.
Nxe3 {[%clk 0:01:05.8]} 22... Re8 {[%clk 0:01:08.5]} 23. Qf1 {[%clk 0:01:03.3]}
23... f4 {[%clk 0:01:08]} 24. Ng4 {[%clk 0:00:55.5]} 24... Rxe1 {[%clk
0:01:04.7]} 25. Qxe1 {[%clk 0:00:56.4]} 25... Nxg4 {[%clk 0:01:02.6]} 26. Qe8+
{[%clk 0:00:53.9]} 26... Kg7 {[%clk 0:01:00.9]} 27. Qf7+ {[%clk 0:00:54]} 27...
Kh6 {[%clk 0:00:56.5]} 28. hxg4 {[%clk 0:00:54.5]} 28... Qe7 {[%clk 0:00:49.6]}
29. Qxe7 {[%clk 0:00:52.5]} 29... Nxe7 {[%clk 0:00:48.6]} 30. Bd3 {[%clk
0:00:52.7]} 30... b6 {[%clk 0:00:37]} 31. Be4 {[%clk 0:00:52.1]} 31... Kg7
{[%clk 0:00:34.8]} 32. Kf2 {[%clk 0:00:51.2]} 32... Ng8 {[%clk 0:00:32.7]} 33.
c4 {[%clk 0:00:46.3]} 33... Nf6 {[%clk 0:00:31.9]} 34. Bf3 {[%clk 0:00:45.4]}
34... h5 {[%clk 0:00:30.5]} 35. gxh5 {[%clk 0:00:46.3]} 35... g4 {[%clk
0:00:30.5]} 36. Bb7 {[%clk 0:00:46.4]} 36... Nxh5 {[%clk 0:00:29.9]} 37. c5
{[%clk 0:00:46.8]} 37... bxc5 {[%clk 0:00:27.5]} 38. dxc5 {[%clk 0:00:47.7]}
38... Nf6 {[%clk 0:00:25.8]} 39. Ke2 {[%clk 0:00:47.3]} 39... Kf7 {[%clk
0:00:22.2]} 40. Kd3 {[%clk 0:00:47.5]} 40... Ke7 {[%clk 0:00:20.2]} 41. Kd4
{[%clk 0:00:44.9]} 41... Ne8 {[%clk 0:00:09.8]} 42. Bc8 {[%clk 0:00:38.4]} 42...
f3 {[%clk 0:00:08.3]} 43. gxf3 {[%clk 0:00:39.3]} 43... gxf3 {[%clk 0:00:07.5]}
44. Ke3 {[%clk 0:00:39.9]} 44... Kf6 {[%clk 0:00:07]} 45. Bb7 {[%clk 0:00:36.6]}
45... Ke5 {[%clk 0:00:06.4]} 46. Bxf3 {[%clk 0:00:35.9]} 46... Nc7 {[%clk
0:00:06.1]} 47. Kd3 {[%clk 0:00:35]} 47... a5 {[%clk 0:00:05.9]} 48. Kc4 {[%clk
0:00:34.4]} 48... Ke6 {[%clk 0:00:05.8]} 49. b3 {[%clk 0:00:33.1]} 49... Ke5
{[%clk 0:00:05.5]} 50. a3 {[%clk 0:00:33.4]} 50... Ke6 {[%clk 0:00:05.5]} 51. b4
{[%clk 0:00:34]} 51... axb4 {[%clk 0:00:05.7]} 52. axb4 {[%clk 0:00:34.9]} 52...
Kd7 {[%clk 0:00:05.6]} 53. b5 {[%clk 0:00:35.8]} 53... Kc8 {[%clk 0:00:04.9]}
54. b6 {[%clk 0:00:36.2]} 54... Na6 {[%clk 0:00:04.2]} 55. Kb5 {[%clk
0:00:35.5]} 55... Nb8 {[%clk 0:00:02.7]} 56. c6 {[%clk 0:00:35.6]} 56... Kd8
{[%clk 0:00:01.4]} 57. c7+ {[%clk 0:00:35.3]} 1-0

[Event "*** SCC Grand Prix: Titled Tuesday Blitz"]
[Site "Chess.com"]
[Date "2020.08.11"]
[Round "1"]
[White "evgenyermolaev"]
[Black "parintele_chess"]
[Result "0-1"]
[WhiteElo "2475"]
[BlackElo "2108"]
[TimeControl "180+1"]
[EndTime "10:07:56 PDT"]
[Termination "parintele_chess won by checkmate"]

1. d4 {[%clk 0:03:00.1]} 1... d5 {[%clk 0:02:59.8]} 2. e4 {[%clk 0:02:58.9]}
2... dxe4 {[%clk 0:02:59.5]} 3. Nc3 {[%clk 0:02:58.1]} 3... Nf6 {[%clk
0:02:59.4]} 4. Bg5 {[%clk 0:02:56.8]} 4... e6 {[%clk 0:02:50.4]} 5. Nxe4 {[%clk
0:02:51.2]} 5... Be7 {[%clk 0:02:47.9]} 6. Bxf6 {[%clk 0:02:51.1]} 6... Bxf6
{[%clk 0:02:42.1]} 7. Nf3 {[%clk 0:02:51.6]} 7... Bd7 {[%clk 0:02:37.4]} 8. Bd3
{[%clk 0:02:47.1]} 8... Bc6 {[%clk 0:02:36.3]} 9. Qe2 {[%clk 0:02:47]} 9... Nd7
{[%clk 0:02:35.2]} 10. O-O-O {[%clk 0:02:30.3]} 10... a6 {[%clk 0:02:19.2]} 11.
Kb1 {[%clk 0:02:18.3]} 11... O-O {[%clk 0:02:16.6]} 12. h4 {[%clk 0:02:09.6]}
12... b5 {[%clk 0:02:13.1]} 13. Ne5 {[%clk 0:01:30]} 13... Bb7 {[%clk
0:01:49.1]} 14. Nxd7 {[%clk 0:01:03.8]} 14... Qxd7 {[%clk 0:01:48.5]} 15. Nxf6+
{[%clk 0:00:36.1]} 15... gxf6 {[%clk 0:01:48.4]} 16. Qh5 {[%clk 0:00:36.5]}
16... f5 {[%clk 0:01:42.1]} 17. g4 {[%clk 0:00:36.4]} 17... Bxh1 {[%clk
0:01:35]} 18. gxf5 {[%clk 0:00:36.3]} 18... f6 {[%clk 0:01:05.7]} 19. fxe6
{[%clk 0:00:29.6]} 19... Qe7 {[%clk 0:01:05.2]} 20. Rxh1 {[%clk 0:00:26.3]}
20... Kh8 {[%clk 0:01:01.9]} 21. d5 {[%clk 0:00:17.7]} 21... Rg8 {[%clk
0:00:54.2]} 22. Qf5 {[%clk 0:00:17.4]} 22... Qg7 {[%clk 0:00:48]} 23. a3 {[%clk
0:00:16.5]} 23... Qg6 {[%clk 0:00:25]} 24. Qf4 {[%clk 0:00:16.2]} 24... Qg7
{[%clk 0:00:21.5]} 25. Rh3 {[%clk 0:00:15.1]} 25... Raf8 {[%clk 0:00:15.9]} 26.
Bf5 {[%clk 0:00:11.3]} 26... Qg1+ {[%clk 0:00:10.4]} 27. Ka2 {[%clk 0:00:11.1]}
27... Qg2 {[%clk 0:00:10.3]} 28. Qh6 {[%clk 0:00:05.6]} 28... Qxd5+ {[%clk
0:00:09.9]} 29. Rb3 {[%clk 0:00:02.5]} 29... Qxf5 {[%clk 0:00:09.8]} 30. e7
{[%clk 0:00:01.1]} 30... Re8 {[%clk 0:00:10.1]} 31. Re3 {[%clk 0:00:02]} 31...
Qd5+ {[%clk 0:00:09.7]} 32. b3 {[%clk 0:00:01.2]} 32... Qd1 {[%clk 0:00:09.3]}
33. Qxf6+ {[%clk 0:00:01.3]} 33... Rg7 {[%clk 0:00:09.5]} 34. Qf8+ {[%clk
0:00:01.9]} 34... Rg8 {[%clk 0:00:09.9]} 35. Qf6+ {[%clk 0:00:02.8]} 35... Rg7
{[%clk 0:00:10.2]} 36. Kb2 {[%clk 0:00:03.7]} 36... Qd7 {[%clk 0:00:08.5]} 37.
Rd3 {[%clk 0:00:03]} 37... Qxe7 {[%clk 0:00:06.5]} 38. Qf3 {[%clk 0:00:02.4]}
38... Qe5+ {[%clk 0:00:06.6]} 39. Ka2 {[%clk 0:00:02.8]} 39... Rg1 {[%clk
0:00:06.1]} 40. Re3 {[%clk 0:00:03.1]} 40... Qa1# {[%clk 0:00:06]} 0-1